[Event "*** Titled Tuesday 3|2 Blitz"]
[Site "Chess.com"]
[Date "2015.04.07"]
[Round "9"]
[White "GeorgMeier"]
[Black "Daniel_Fridman"]
[Result "1-0"]
[WhiteElo "2740"]
[BlackElo "2630"]
[TimeControl "180+2"]
[EndTime "13:01:17 PDT"]
[Termination "GeorgMeier won by resignation"]

1. Nf3 {[%clk 0:03:01.9]} 1... d5 {[%clk 0:03:00.1]} 2. g3 {[%clk 0:03:03.1]}
2... g6 {[%clk 0:03:00.9]} 3. Bg2 {[%clk 0:03:04.1]} 3... Bg7 {[%clk 0:02:59.5]}
4. d4 {[%clk 0:03:05.5]} 4... c5 {[%clk 0:02:56.3]} 5. c3 {[%clk 0:03:00.8]}
5... cxd4 {[%clk 0:02:54.8]} 6. cxd4 {[%clk 0:03:01.9]} 6... Nc6 {[%clk
0:02:56.4]} 7. O-O {[%clk 0:03:00.4]} 7... Nh6 {[%clk 0:02:57.6]} 8. Nc3 {[%clk
0:02:59.7]} 8... Nf5 {[%clk 0:02:57.6]} 9. e3 {[%clk 0:02:59.6]} 9... e6 {[%clk
0:02:54.4]} 10. b3 {[%clk 0:02:58.9]} 10... O-O {[%clk 0:02:54.1]} 11. Qe2
{[%clk 0:02:53.5]} 11... b6 {[%clk 0:02:53.3]} 12. Rd1 {[%clk 0:02:45.8]} 12...
Bb7 {[%clk 0:02:52.9]} 13. Ba3 {[%clk 0:02:44.2]} 13... Re8 {[%clk 0:02:53.3]}
14. Rac1 {[%clk 0:02:45.8]} 14... h5 {[%clk 0:02:51.5]} 15. h3 {[%clk
0:02:45.9]} 15... Rc8 {[%clk 0:02:40.5]} 16. Qd2 {[%clk 0:02:39.7]} 16... Nd6
{[%clk 0:02:37.2]} 17. Qe2 {[%clk 0:02:38.6]} 17... Qd7 {[%clk 0:02:32.2]} 18.
Ne1 {[%clk 0:02:29.6]} 18... Nf5 {[%clk 0:02:24]} 19. Nf3 {[%clk 0:02:29.2]}
19... Nd6 {[%clk 0:02:17.8]} 20. Bf1 {[%clk 0:02:22.2]} 20... Red8 {[%clk
0:02:00.7]} 21. Rc2 {[%clk 0:02:18.2]} 21... Ne4 {[%clk 0:01:42.8]} 22. Rdc1
{[%clk 0:02:13.6]} 22... Nd6 {[%clk 0:01:28.4]} 23. Qe1 {[%clk 0:02:11.5]} 23...
Bf8 {[%clk 0:01:26.7]} 24. Be2 {[%clk 0:01:50.8]} 24... Bg7 {[%clk 0:01:26.7]}
25. Bf1 {[%clk 0:01:46.1]} 25... Bf8 {[%clk 0:01:26.6]} 26. Qd1 {[%clk
0:01:41.8]} 26... Bg7 {[%clk 0:01:24.1]} 27. Qe1 {[%clk 0:01:26]} 27... Bf6
{[%clk 0:01:15.8]} 28. Qd1 {[%clk 0:01:25.7]} 28... Kg7 {[%clk 0:01:16]} 29. Bg2
{[%clk 0:01:24.7]} 29... Ba6 {[%clk 0:01:14.8]} 30. Bf1 {[%clk 0:01:24]} 30...
Bxf1 {[%clk 0:01:15.5]} 31. Qxf1 {[%clk 0:01:24.9]} 31... Be7 {[%clk 0:01:04.7]}
32. Kg2 {[%clk 0:01:18.8]} 32... Nf5 {[%clk 0:01:05.5]} 33. Bxe7 {[%clk
0:01:18.5]} 33... Nfxe7 {[%clk 0:01:06.7]} 34. a3 {[%clk 0:01:12.4]} 34... Na5
{[%clk 0:01:03.7]} 35. Nd2 {[%clk 0:01:11.5]} 35... Nf5 {[%clk 0:01:00.6]} 36.
Qa6 {[%clk 0:00:59.9]} 36... Nd6 {[%clk 0:00:59]} 37. a4 {[%clk 0:00:56.7]}
37... Nc6 {[%clk 0:00:32]} 38. Na2 {[%clk 0:00:50]} 38... Nb8 {[%clk 0:00:29.5]}
39. Qd3 {[%clk 0:00:47.8]} 39... Nc6 {[%clk 0:00:30.4]} 40. Qa6 {[%clk
0:00:47.9]} 40... Rc7 {[%clk 0:00:26.6]} 41. Qe2 {[%clk 0:00:46.6]} 41... Rdc8
{[%clk 0:00:27.5]} 42. Qd1 {[%clk 0:00:47.7]} 42... Nb7 {[%clk 0:00:27.9]} 43.
Rc3 {[%clk 0:00:45.1]} 43... Nd6 {[%clk 0:00:26.8]} 44. R1c2 {[%clk 0:00:43.6]}
44... Ne8 {[%clk 0:00:27.9]} 45. Qc1 {[%clk 0:00:43.9]} 45... Qd6 {[%clk
0:00:29.2]} 46. Qb2 {[%clk 0:00:35.9]} 46... Na5 {[%clk 0:00:29.9]} 47. b4
{[%clk 0:00:32.8]} 47... Nc4 {[%clk 0:00:29.2]} 48. Nxc4 {[%clk 0:00:33.6]}
48... Rxc4 {[%clk 0:00:27.9]} 49. Rxc4 {[%clk 0:00:32.2]} 49... Rxc4 {[%clk
0:00:29.8]} 50. Rxc4 {[%clk 0:00:32.8]} 50... dxc4 {[%clk 0:00:31.7]} 51. Nc3
{[%clk 0:00:31.6]} 51... Nc7 {[%clk 0:00:32.4]} 52. b5 {[%clk 0:00:28.3]} 52...
Nd5 {[%clk 0:00:28.7]} 53. e4 {[%clk 0:00:29.3]} 53... Qb4 {[%clk 0:00:24.8]}
54. Qxb4 {[%clk 0:00:29.6]} 54... Nxb4 {[%clk 0:00:26.7]} 55. Kf3 {[%clk
0:00:24.4]} 55... Nc2 {[%clk 0:00:27.3]} 56. d5 {[%clk 0:00:24.6]} 56... Kf6
{[%clk 0:00:24.8]} 57. dxe6 {[%clk 0:00:10.8]} 57... fxe6 {[%clk 0:00:23.2]} 58.
Ke2 {[%clk 0:00:11.4]} 58... Ke5 {[%clk 0:00:24.3]} 59. Kd2 {[%clk 0:00:12.7]}
59... Nb4 {[%clk 0:00:25.5]} 60. Ke3 {[%clk 0:00:13.8]} 60... Nc2+ {[%clk
0:00:26]} 61. Kd2 {[%clk 0:00:14.9]} 61... Nb4 {[%clk 0:00:23]} 62. f3 {[%clk
0:00:16]} 62... Kd4 {[%clk 0:00:23.5]} 63. Ne2+ {[%clk 0:00:16.6]} 63... Kc5
{[%clk 0:00:24.8]} 64. Nf4 {[%clk 0:00:13.4]} 64... e5 {[%clk 0:00:23.1]} 65.
Ne2 {[%clk 0:00:11.8]} 65... Na2 {[%clk 0:00:19.9]} 66. Nc3 {[%clk 0:00:11.4]}
66... Nb4 {[%clk 0:00:13.6]} 67. h4 {[%clk 0:00:10.5]} 67... Nd3 {[%clk
0:00:13.5]} 68. Ke3 {[%clk 0:00:06.8]} 68... Nb2 {[%clk 0:00:14]} 69. Kd2 {[%clk
0:00:08]} 69... Kb4 {[%clk 0:00:12.7]} 70. f4 {[%clk 0:00:08.6]} 70... exf4
{[%clk 0:00:10.9]} 71. gxf4 {[%clk 0:00:10.5]} 71... Nd3 {[%clk 0:00:12.1]} 72.
f5 {[%clk 0:00:10.4]} 72... gxf5 {[%clk 0:00:13.3]} 73. exf5 {[%clk 0:00:12.3]}
73... Ne5 {[%clk 0:00:13.6]} 74. f6 {[%clk 0:00:11.2]} 74... Kc5 {[%clk
0:00:14.8]} 75. Ne4+ {[%clk 0:00:08.4]} 75... Kd5 {[%clk 0:00:10.2]} 76. Ng5
{[%clk 0:00:08.6]} 76... Kd6 {[%clk 0:00:11.5]} 77. Kc3 {[%clk 0:00:08.1]} 77...
Kd7 {[%clk 0:00:12.7]} 78. Kd4 {[%clk 0:00:08.4]} 78... Kd6 {[%clk 0:00:13.8]}
79. f7 {[%clk 0:00:08.1]} 79... Ng6 {[%clk 0:00:09.7]} 80. Kxc4 {[%clk
0:00:03.6]} 80... Ke7 {[%clk 0:00:10.7]} 81. Kd5 {[%clk 0:00:04.5]} 81... Nxh4
{[%clk 0:00:11.1]} 82. Kc6 {[%clk 0:00:06]} 82... Ng6 {[%clk 0:00:10.9]} 83. Kb7
{[%clk 0:00:07.2]} 83... Kf6 {[%clk 0:00:12]} 84. Nh3 {[%clk 0:00:07.1]} 84...
Kxf7 {[%clk 0:00:13]} 85. Kxa7 {[%clk 0:00:08.2]} 85... Ke7 {[%clk 0:00:13.4]}
86. Kxb6 {[%clk 0:00:09]} 86... Ne5 {[%clk 0:00:14.5]} 87. Kc7 {[%clk
0:00:08.3]} 87... Nd3 {[%clk 0:00:06.8]} 88. a5 {[%clk 0:00:08.3]} 88... Nb4
{[%clk 0:00:04.9]} 89. a6 {[%clk 0:00:09.3]} 89... Nd5+ {[%clk 0:00:06.4]} 90.
Kb7 {[%clk 0:00:10.6]} 90... Kd6 {[%clk 0:00:06.9]} 91. a7 {[%clk 0:00:11]}
91... Nc7 {[%clk 0:00:08.1]} 92. b6 {[%clk 0:00:12.3]} 1-0